[Event "XXII Obert Internacional d'Escacs Sant Marti 2022"]
[Site "Barcelona, Spain"]
[Date "2022.07.13"]
[Round "1.1"]
[White "Congrains Diaz, Adrian Francisco"]
[Black "Asis Gargatagli, Hipolito"]
[Result "0-1"]
[TimeControl "1.30 fb 30"]
[WhiteElo "2025"]
[BlackElo "2514"]

1. d4 {[%clk 01:30:22]} {[%emt 00:00:37]} Nf6 {[%clk 01:30:41]} {[%emt
00:00:19]} 2. c4 {[%clk 01:30:45]} {[%emt 00:00:09]} g6 {[%clk 01:30:41]}
{[%emt 00:00:31]} 3. Nc3 {[%clk 01:31:04]} {[%emt 00:00:11]} Bg7 {[%clk
01:31:03]} {[%emt 00:00:07]} 4. e4 {[%clk 01:31:32]} {[%emt 00:00:02]} d6
{[%clk 01:31:24]} {[%emt 00:00:09]} 5. f3 {[%clk 01:31:57]} {[%emt 00:00:05]}
O-O {[%clk 01:31:18]} {[%emt 00:00:36]} 6. Bg5 {[%clk 01:32:23]} {[%emt
00:00:04]} c5 {[%clk 01:30:15]} {[%emt 00:01:33]} 7. d5 {[%emt 00:00:09]} e6
{[%clk 01:30:28]} {[%emt 00:00:14]} 8. Qd2 {[%clk 01:33:12]} {[%emt 00:00:05]}
exd5 {[%clk 01:30:34]} {[%emt 00:00:24]} 9. cxd5 {[%clk 01:33:36]} {[%emt
00:00:06]} h6 {[%clk 01:26:59]} {[%emt 00:04:05]} 10. Be3 {[%clk 01:33:50]}
{[%emt 00:00:16]} a6 {[%clk 01:21:10]} {[%emt 00:06:18]} 11. a4 {[%clk
01:34:14]} {[%emt 00:00:05]} Re8 {[%clk 01:19:36]} {[%emt 00:02:05]} 12. Nge2
{[%clk 01:33:01]} {[%emt 00:01:43]} Nbd7 {[%clk 01:15:57]} {[%emt 00:04:08]} 13.
Ng3 {[%clk 01:30:07]} {[%emt 00:03:25]} h5 {[%clk 01:15:55]} {[%emt 00:00:32]}
14. Bg5 {[%clk 01:15:24]} {[%emt 00:15:12]} h4 {[%clk 01:12:28]} {[%emt
00:03:57]} 15. Nge2 {[%clk 01:05:40]} {[%emt 00:10:15]} Ne5 {[%clk 01:06:49]}
{[%emt 00:06:10]} 16. h3 {[%clk 00:54:52]} {[%emt 00:11:18]} Nc4 {[%clk
01:01:07]} {[%emt 00:06:12]} 17. Qf4 {[%clk 00:47:17]} {[%emt 00:08:04]} Nxb2
{[%clk 00:57:49]} {[%emt 00:03:48]} 18. Qxh4 {[%clk 00:47:40]} {[%emt
00:00:07]} Nd3+ {[%clk 00:56:29]} {[%emt 00:01:50]} 19. Kd2 {[%clk 00:47:47]}
{[%emt 00:00:23]} Ne5 {[%clk 00:55:28]} {[%emt 00:01:31]} 20. Ng3 {[%clk
00:39:46]} {[%emt 00:08:30]} c4 {[%clk 00:46:54]} {[%emt 00:09:04]} 21. Kc2
{[%clk 00:35:46]} {[%emt 00:04:30]} Bd7 {[%clk 00:30:34]} {[%emt 00:16:50]} 22.
Be2 {[%clk 00:31:54]} {[%emt 00:04:23]} b5 {[%clk 00:19:12]} {[%emt 00:11:51]}
23. Rhb1 {[%clk 00:29:11]} {[%emt 00:03:11]} Rb8 {[%clk 00:16:33]} {[%emt
00:03:10]} 24. axb5 {[%clk 00:28:10]} {[%emt 00:01:31]} axb5 {[%clk 00:16:59]}
{[%emt 00:00:04]} 25. Rb4 {[%clk 00:28:02]} {[%emt 00:00:38]} Rc8 {[%clk
00:16:42]} {[%emt 00:00:48]} 26. Ra3 {[%clk 00:25:56]} {[%emt 00:02:36]} Rc5
{[%clk 00:12:58]} {[%emt 00:04:13]} 27. f4 {[%clk 00:20:11]} {[%emt 00:06:15]}
Nd3 {[%clk 00:13:23]} {[%emt 00:00:06]} 28. Bxd3 {[%clk 00:20:34]} {[%emt
00:00:06]} cxd3+ {[%clk 00:13:48]} {[%emt 00:00:05]} 29. Kxd3 {[%clk 00:20:47]}
{[%emt 00:00:17]} Qe7 {[%clk 00:12:22]} {[%emt 00:01:57]} 30. Kd2 {[%clk
00:14:05]} {[%emt 00:07:12]} Rec8 {[%clk 00:12:14]} {[%emt 00:00:38]} 31. Nge2
{[%clk 00:08:08]} {[%emt 00:06:27]} Rc4 {[%clk 00:10:31]} {[%emt 00:02:13]} 32.
Rxc4 {[%clk 00:07:17]} {[%emt 00:01:21]} Rxc4 {[%clk 00:10:48]} {[%emt
00:00:12]} 33. Ra8+ {[%clk 00:07:18]} {[%emt 00:00:30]} Bc8 {[%clk 00:11:13]}
{[%emt 00:00:04]} 34. Kd3 {[%clk 00:06:49]} {[%emt 00:00:59]} Rc5 {[%clk
00:06:02]} {[%emt 00:05:42]} 35. e5 {[%emt 00:05:15]} dxe5 {[%clk 00:06:22]}
{[%emt 00:00:06]} 36. Ne4 {[%clk 00:02:24]} {[%emt 00:00:13]} Rxd5+ {[%clk
00:06:29]} {[%emt 00:00:24]} 37. Ke3 {[%clk 00:02:40]} {[%emt 00:00:14]} exf4+
{[%clk 00:06:24]} {[%emt 00:00:34]} 38. Qxf4 {[%clk 00:03:05]} {[%emt
00:00:06]} Rxg5 {[%clk 00:06:09]} {[%emt 00:00:45]} 39. Rxc8+ {[%clk 00:02:30]}
{[%emt 00:01:05]} Kh7 {[%clk 00:05:36]} {[%emt 00:01:02]} 40. Qxg5 {[%clk
00:02:41]} {[%emt 00:00:19]} Qxe4+ {[%clk 00:06:02]} {[%emt 00:00:05]} 41. Kf2
{[%clk 00:02:38]} {[%emt 00:00:33]} Qe6 {[%clk 00:05:18]} {[%emt 00:01:14]} 42.
Qh4+ {[%clk 00:02:55]} {[%emt 00:00:13]} Bh6 {[%clk 00:05:45]} {[%emt
00:00:03]} 43. Rc2 {[%clk 00:00:41]} {[%emt 00:02:43]} Qf5+ {[%clk 00:05:19]}
{[%emt 00:00:56]} 44. Ke1 {[%clk 00:00:52]} {[%emt 00:00:19]} Qxc2 {[%clk
00:05:11]} {[%emt 00:00:37]} 45. Qxf6 {[%clk 00:01:19]} {[%emt 00:00:03]} Qc4
{[%clk 00:04:33]} {[%emt 00:01:08]} 46. Qd4 {[%clk 00:01:02]} {[%emt 00:00:47]}
Qc6 {[%clk 00:04:35]} {[%emt 00:00:28]} 47. Kf2 {[%clk 00:01:24]} {[%emt
00:00:08]} Bf8 {[%clk 00:04:48]} {[%emt 00:00:17]} 48. Kf1 {[%clk 00:01:29]}
{[%emt 00:00:26]} b4 {[%clk 00:04:41]} {[%emt 00:00:37]} 49. Ng3 {[%clk
00:01:50]} {[%emt 00:00:08]} b3 {[%clk 00:04:06]} {[%emt 00:01:05]} 50. Ne4
{[%clk 00:02:16]} {[%emt 00:00:05]} Be7 {[%clk 00:04:28]} {[%emt 00:00:07]} 51.
Qe5 {[%clk 00:02:31]} {[%emt 00:00:15]} b2 {[%clk 00:03:47]} {[%emt 00:01:12]}
52. Nd2 {[%clk 00:02:35]} {[%emt 00:00:25]} Qc1+ {[%clk 00:03:35]} {[%emt
00:00:43]} 53. Ke2 {[%clk 00:03:01]} {[%emt 00:00:04]} Bb4 {[%clk 00:03:53]}
{[%emt 00:00:11]} 0-1

[Event "XXII Obert Internacional d'Escacs Sant Marti 2022"]
[Site "Barcelona, Spain"]
[Date "2022.07.13"]
[Round "1.2"]
[White "Roshka, Yevgeniy"]
[Black "Asensio Linan, Teodoro"]
[Result "1-0"]
[TimeControl "1.30 fb 30"]
[WhiteElo "2497"]
[BlackElo "2015"]

1. d4 {[%clk 01:29:37]} {[%emt 00:01:17]} g6 {[%clk 01:30:33]} {[%emt
00:00:32]} 2. e4 {[%clk 01:28:56]} {[%emt 00:01:11]} Nf6 {[%clk 01:30:45]}
{[%emt 00:00:19]} 3. Bd3 {[%clk 01:28:57]} {[%emt 00:00:30]} d6 {[%clk
01:25:24]} {[%emt 00:05:51]} 4. Nf3 {[%clk 01:29:21]} {[%emt 00:00:05]} Bg7
{[%clk 01:24:49]} {[%emt 00:01:05]} 5. O-O {[%clk 01:29:36]} {[%emt 00:00:16]}
O-O {[%clk 01:23:04]} {[%emt 00:02:15]} 6. Nbd2 {[%clk 01:29:31]} {[%emt
00:00:35]} Na6 {[%clk 01:17:51]} {[%emt 00:05:44]} 7. c3 {[%clk 01:27:03]}
{[%emt 00:02:57]} c5 {[%clk 01:13:00]} {[%emt 00:05:20]} 8. Re1 {[%clk
01:25:16]} {[%emt 00:02:17]} cxd4 {[%clk 01:05:16]} {[%emt 00:08:15]} 9. cxd4
{[%clk 01:25:37]} {[%emt 00:00:09]} Nb4 {[%clk 01:01:23]} {[%emt 00:04:22]} 10.
Bb1 {[%clk 01:25:48]} {[%emt 00:00:19]} e5 {[%clk 00:48:57]} {[%emt 00:12:57]}
11. dxe5 {[%clk 01:20:27]} {[%emt 00:05:51]} Ng4 {[%clk 00:43:38]} {[%emt
00:05:48]} 12. exd6 {[%emt 00:11:14]} Qb6 {[%clk 00:40:07]} {[%emt 00:04:01]}
13. Qe2 {[%clk 01:09:41]} {[%emt 00:00:32]} Qxd6 {[%clk 00:38:48]} {[%emt
00:01:50]} 14. e5 {[%clk 01:09:14]} {[%emt 00:00:58]} Qc7 {[%clk 00:35:12]}
{[%emt 00:04:06]} 15. h3 {[%clk 01:08:56]} {[%emt 00:00:47]} Nh6 {[%clk
00:35:32]} {[%emt 00:00:10]} 16. Ne4 {[%clk 01:07:09]} {[%emt 00:02:17]} b6
{[%clk 00:29:50]} {[%emt 00:06:13]} 17. Bg5 {[%clk 01:07:28]} {[%emt 00:00:10]}
Ba6 {[%clk 00:29:42]} {[%emt 00:00:39]} 18. Qd2 {[%clk 01:07:51]} {[%emt
00:00:06]} Nd3 {[%clk 00:15:55]} {[%emt 00:14:17]} 19. Bxd3 {[%clk 01:07:35]}
{[%emt 00:00:46]} 1-0

[Event "XXII Obert Internacional d'Escacs Sant Marti 2022"]
[Site "Barcelona, Spain"]
[Date "2022.07.13"]
[Round "1.4"]
[White "Aronyak, Ghosh"]
[Black "Monedero Gonzalez, Josep"]
[Result "1-0"]
[TimeControl "1.30 fb 30"]
[WhiteElo "2486"]
[BlackElo "2002"]

1. c4 {[%clk 01:29:40]} {[%emt 00:01:20]} e6 {[%clk 01:30:51]} {[%emt
00:00:10]} 2. Nc3 {[%clk 01:28:49]} {[%emt 00:01:20]} Nf6 {[%clk 01:31:02]}
{[%emt 00:00:19]} 3. e4 {[%clk 01:28:18]} {[%emt 00:01:01]} Nc6 {[%clk
01:30:15]} {[%emt 00:01:18]} 4. Nf3 {[%clk 01:25:40]} {[%emt 00:03:09]} d5
{[%clk 01:26:02]} {[%emt 00:04:43]} 5. e5 {[%clk 01:23:30]} {[%emt 00:02:40]}
Ne4 {[%clk 01:26:06]} {[%emt 00:00:26]} 6. d4 {[%clk 01:23:20]} {[%emt
00:00:40]} Be7 {[%clk 01:24:38]} {[%emt 00:01:58]} 7. Bd3 {[%clk 01:21:47]}
{[%emt 00:02:03]} Nxc3 {[%clk 01:20:58]} {[%emt 00:04:09]} 8. bxc3 {[%clk
01:22:14]} {[%emt 00:00:03]} dxc4 {[%clk 01:20:57]} {[%emt 00:00:32]} 9. Bxc4
{[%clk 01:22:21]} {[%emt 00:00:23]} O-O {[%clk 01:20:18]} {[%emt 00:01:08]} 10.
O-O {[%clk 01:22:15]} {[%emt 00:00:37]} Na5 {[%clk 01:18:15]} {[%emt 00:02:33]}
11. Bd3 {[%clk 01:21:07]} {[%emt 00:01:38]} c5 {[%clk 01:12:10]} {[%emt
00:06:36]} 12. Qc2 {[%clk 01:20:45]} {[%emt 00:00:51]} g6 {[%clk 01:10:07]}
{[%emt 00:02:32]} 13. Bh6 {[%clk 01:16:09]} {[%emt 00:05:06]} Re8 {[%clk
01:10:08]} {[%emt 00:00:29]} 14. Qd2 {[%clk 01:16:31]} {[%emt 00:00:08]} Nc6
{[%clk 01:06:18]} {[%emt 00:04:20]} 15. Qf4 {[%clk 01:13:32]} {[%emt 00:03:30]}
cxd4 {[%clk 01:02:36]} {[%emt 00:04:12]} 16. Rad1 {[%clk 01:12:34]} {[%emt
00:01:27]} f6 {[%clk 00:54:04]} {[%emt 00:09:03]} 17. Qg3 {[%clk 01:08:42]}
{[%emt 00:04:22]} f5 {[%clk 00:53:11]} {[%emt 00:01:24]} 18. cxd4 {[%clk
01:08:56]} {[%emt 00:00:15]} Nb4 {[%clk 00:48:05]} {[%emt 00:05:35]} 19. Bc4
{[%clk 01:08:37]} {[%emt 00:00:48]} Nd5 {[%clk 00:47:50]} {[%emt 00:00:45]} 20.
h4 {[%clk 01:06:49]} {[%emt 00:02:18]} Kf7 {[%clk 00:39:45]} {[%emt 00:08:35]}
21. Ng5+ {[%clk 01:06:14]} {[%emt 00:01:05]} Bxg5 {[%clk 00:39:33]} {[%emt
00:00:41]} 22. Bxg5 {[%clk 01:06:41]} {[%emt 00:00:05]} Qc7 {[%clk 00:39:48]}
{[%emt 00:00:15]} 23. Rc1 {[%clk 01:06:57]} {[%emt 00:00:13]} Qd7 {[%clk
00:38:50]} {[%emt 00:01:28]} 24. Bxd5 {[%clk 01:05:42]} {[%emt 00:01:45]} Qxd5
{[%clk 00:36:03]} {[%emt 00:03:16]} 25. Rc7+ {[%clk 01:06:07]} {[%emt
00:00:06]} Bd7 {[%clk 00:36:06]} {[%emt 00:00:27]} 26. Qb3 {[%emt 00:07:37]}
1-0

[Event "XXII Obert Internacional d'Escacs Sant Marti 2022"]
[Site "Barcelona, Spain"]
[Date "2022.07.13"]
[Round "1.5"]
[White "Sudarshan, Bhat"]
[Black "Berdayes Ason, Dylan Isidro"]
[Result "0-1"]
[TimeControl "1.30 fb 30"]
[WhiteElo "2001"]
[BlackElo "2480"]

1. e4 {[%clk 01:30:56]} {[%emt 00:00:03]} c6 {[%clk 01:20:24]} {[%emt
00:10:27]} 2. d4 {[%clk 01:31:23]} {[%emt 00:00:12]} d5 {[%clk 01:20:50]}
{[%emt 00:00:04]} 3. exd5 {[%clk 01:31:45]} {[%emt 00:00:08]} cxd5 {[%clk
01:21:17]} {[%emt 00:00:03]} 4. c4 {[%clk 01:32:06]} {[%emt 00:00:09]} Nf6
{[%clk 01:21:27]} {[%emt 00:00:20]} 5. Nc3 {[%clk 01:32:32]} {[%emt 00:00:04]}
Nc6 {[%clk 01:21:29]} {[%emt 00:00:27]} 6. Bg5 {[%clk 01:32:54]} {[%emt
00:00:08]} dxc4 {[%clk 01:21:06]} {[%emt 00:00:54]} 7. Bxc4 {[%clk 01:33:16]}
{[%emt 00:00:08]} h6 {[%clk 01:21:32]} {[%emt 00:00:05]} 8. Bh4 {[%clk
01:26:10]} {[%emt 00:07:35]} e6 {[%clk 01:21:59]} {[%emt 00:00:03]} 9. Nf3
{[%clk 01:24:07]} {[%emt 00:02:33]} Be7 {[%clk 01:22:22]} {[%emt 00:00:07]} 10.
O-O {[%clk 01:23:54]} {[%emt 00:00:43]} O-O {[%clk 01:22:49]} {[%emt 00:00:03]}
11. a3 {[%clk 01:20:34]} {[%emt 00:03:51]} Nh5 {[%clk 01:22:53]} {[%emt
00:00:26]} 12. Bxe7 {[%clk 01:19:52]} {[%emt 00:01:12]} Nxe7 {[%clk 01:23:19]}
{[%emt 00:00:04]} 13. Ne5 {[%clk 01:08:27]} {[%emt 00:11:55]} Nf6 {[%clk
01:23:43]} {[%emt 00:00:07]} 14. Qd3 {[%clk 01:02:21]} {[%emt 00:06:35]} Qb6
{[%clk 01:20:48]} {[%emt 00:03:26]} 15. Rad1 {[%clk 00:56:48]} {[%emt
00:06:02]} Rd8 {[%clk 01:18:34]} {[%emt 00:02:44]} 16. Ba2 {[%clk 00:50:26]}
{[%emt 00:06:52]} Bd7 {[%clk 01:16:52]} {[%emt 00:02:12]} 17. Bb1 {[%clk
00:43:45]} {[%emt 00:07:12]} Bc6 {[%clk 01:16:08]} {[%emt 00:01:13]} 18. Rfe1
{[%clk 00:33:19]} {[%emt 00:10:56]} Nf5 {[%clk 01:10:52]} {[%emt 00:05:46]} 19.
Nxc6 {[%clk 00:19:42]} {[%emt 00:14:07]} bxc6 {[%clk 01:07:15]} {[%emt
00:04:06]} 20. Ne4 {[%clk 00:14:37]} {[%emt 00:05:36]} Nxe4 {[%clk 01:07:35]}
{[%emt 00:00:10]} 21. Rxe4 {[%clk 00:12:10]} {[%emt 00:02:57]} c5 {[%clk
01:06:06]} {[%emt 00:02:00]} 22. Rf4 {[%clk 00:07:10]} {[%emt 00:05:29]} g6
{[%clk 01:00:49]} {[%emt 00:05:47]} 23. Qf3 {[%clk 00:00:48]} {[%emt 00:06:52]}
Nxd4 {[%clk 00:58:15]} {[%emt 00:03:04]} 24. Rdxd4 {[%clk 00:00:58]} {[%emt
00:00:20]} cxd4 {[%clk 00:58:42]} {[%emt 00:00:04]} 25. Rxf7 {[%clk 00:01:12]}
{[%emt 00:00:15]} Qxb2 {[%clk 00:58:35]} {[%emt 00:00:36]} 26. Bd3 {[%clk
00:00:42]} {[%emt 00:01:00]} Rf8 {[%clk 00:57:40]} {[%emt 00:01:25]} 27. Rf6
{[%clk 00:00:39]} {[%emt 00:00:34]} Qc1+ {[%clk 00:57:26]} {[%emt 00:00:44]} 28.
Bf1 {[%clk 00:01:06]} {[%emt 00:00:02]} Kg7 {[%clk 00:57:35]} {[%emt 00:00:21]}
29. Rf7+ {[%clk 00:00:32]} {[%emt 00:01:05]} Rxf7 {[%clk 00:58:01]} {[%emt
00:00:05]} 30. Qxa8 {[%clk 00:00:57]} {[%emt 00:00:05]} Qe1 {[%clk 00:58:05]}
{[%emt 00:00:24]} 0-1

[Event "XXII Obert Internacional d'Escacs Sant Marti 2022"]
[Site "Barcelona, Spain"]
[Date "2022.07.13"]
[Round "1.6"]
[White "Kovchan, Alexander"]
[Black "De Mey, Juan Pablo"]
[Result "1-0"]
[TimeControl "1.30 fb 30"]
[WhiteElo "2468"]
[BlackElo "1995"]

1. e4 {[%clk 01:28:51]} {[%emt 00:02:07]} c5 {[%clk 01:30:57]} {[%emt
00:00:04]} 2. Nf3 {[%clk 01:29:14]} {[%emt 00:00:07]} d6 {[%clk 01:31:20]}
{[%emt 00:00:06]} 3. d4 {[%clk 01:29:38]} {[%emt 00:00:07]} cxd4 {[%emt
00:00:07]} 4. Nxd4 {[%clk 01:30:03]} {[%emt 00:00:04]} Nf6 {[%clk 01:32:04]}
{[%emt 00:00:09]} 5. Nc3 {[%clk 01:30:27]} {[%emt 00:00:06]} g6 {[%clk
01:32:30]} {[%emt 00:00:04]} 6. Be3 {[%clk 01:30:32]} {[%emt 00:00:26]} Bg7
{[%clk 01:32:53]} {[%emt 00:00:05]} 7. f3 {[%clk 01:30:50]} {[%emt 00:00:13]}
O-O {[%clk 01:33:07]} {[%emt 00:00:15]} 8. Qd2 {[%clk 01:31:14]} {[%emt
00:00:07]} Nc6 {[%clk 01:33:32]} {[%emt 00:00:05]} 9. O-O-O {[%clk 01:31:33]}
{[%emt 00:00:11]} d5 {[%clk 01:33:56]} {[%emt 00:00:06]} 10. exd5 {[%clk
01:31:34]} {[%emt 00:00:30]} Nxd5 {[%clk 01:34:17]} {[%emt 00:00:08]} 11. Nxc6
{[%clk 01:31:53]} {[%emt 00:00:12]} bxc6 {[%clk 01:34:44]} {[%emt 00:00:03]} 12.
Bd4 {[%clk 01:32:15]} {[%emt 00:00:07]} e5 {[%clk 01:34:36]} {[%emt 00:00:38]}
13. Bc5 {[%clk 01:32:36]} {[%emt 00:00:10]} Re8 {[%clk 01:34:59]} {[%emt
00:00:06]} 14. Ne4 {[%clk 01:22:08]} {[%emt 00:10:58]} Qc7 {[%clk 01:35:09]}
{[%emt 00:00:20]} 15. Bc4 {[%clk 01:18:48]} {[%emt 00:03:50]} Be6 {[%clk
01:31:51]} {[%emt 00:03:48]} 16. Kb1 {[%clk 01:12:57]} {[%emt 00:06:22]} h6
{[%clk 01:32:04]} {[%emt 00:00:16]} 17. g4 {[%clk 01:01:29]} {[%emt 00:11:59]}
f5 {[%clk 01:12:58]} {[%emt 00:19:35]} 18. gxf5 {[%emt 00:00:27]} gxf5 {[%clk
01:13:25]} {[%emt 00:00:02]} 19. Nd6 {[%clk 00:49:44]} {[%emt 00:12:19]} Red8
{[%clk 00:41:16]} {[%emt 00:32:40]} 20. Rhg1 {[%clk 00:49:15]} {[%emt
00:00:58]} Rxd6 {[%clk 00:19:06]} {[%emt 00:22:40]} 21. Bxd6 {[%clk 00:47:16]}
{[%emt 00:02:28]} Qxd6 {[%clk 00:19:22]} {[%emt 00:00:15]} 22. Qxh6 {[%clk
00:46:51]} {[%emt 00:00:55]} Nc3+ {[%clk 00:19:20]} {[%emt 00:00:32]} 23. bxc3
{[%emt 00:00:22]} Qxd1+ {[%clk 00:19:42]} {[%emt 00:00:06]} 24. Rxd1 {[%clk
00:47:15]} {[%emt 00:00:16]} Rb8+ {[%clk 00:19:44]} {[%emt 00:00:28]} 25. Ka1
{[%clk 00:47:34]} {[%emt 00:00:11]} Bxh6 {[%clk 00:20:07]} {[%emt 00:00:07]} 26.
Bxe6+ {[%clk 00:47:59]} {[%emt 00:00:05]} Kg7 {[%clk 00:19:58]} {[%emt
00:00:40]} 27. Bxf5 {[%clk 00:47:22]} {[%emt 00:01:07]} Bf4 {[%clk 00:18:47]}
{[%emt 00:01:40]} 28. Be4 {[%clk 00:43:51]} {[%emt 00:04:02]} a5 {[%clk
00:16:08]} {[%emt 00:03:09]} 29. h4 {[%clk 00:42:36]} {[%emt 00:01:44]} Kh6
{[%clk 00:14:19]} {[%emt 00:02:20]} 30. Rd7 {[%clk 00:34:36]} {[%emt 00:08:31]}
Kh5 {[%clk 00:13:12]} {[%emt 00:01:37]} 31. Rh7+ {[%clk 00:33:51]} {[%emt
00:01:14]} Bh6 {[%clk 00:13:02]} {[%emt 00:00:38]} 32. a4 {[%emt 00:02:34]} c5
{[%clk 00:13:06]} {[%emt 00:00:26]} 33. Ka2 {[%clk 00:27:19]} {[%emt 00:05:00]}
c4 {[%emt 00:02:18]} 34. Ra7 {[%clk 00:22:24]} {[%emt 00:05:25]} Kxh4 {[%clk
00:10:22]} {[%emt 00:01:27]} 35. Rxa5 {[%clk 00:22:47]} {[%emt 00:00:07]} Bd2
{[%clk 00:10:29]} {[%emt 00:00:22]} 36. Rc5 {[%clk 00:21:38]} {[%emt 00:01:39]}
Bxc3 {[%clk 00:10:32]} {[%emt 00:00:27]} 37. Rxc4 {[%clk 00:22:01]} {[%emt
00:00:06]} Be1 {[%clk 00:10:35]} {[%emt 00:00:27]} 38. c3 {[%clk 00:20:18]}
{[%emt 00:02:14]} Kg3 {[%clk 00:10:08]} {[%emt 00:00:57]} 39. a5 {[%clk
00:19:26]} {[%emt 00:01:23]} Rb5 {[%clk 00:09:41]} {[%emt 00:00:57]} 40. Ra4
{[%clk 00:19:49]} {[%emt 00:00:07]} Bxc3 {[%clk 00:10:04]} {[%emt 00:00:06]} 41.
a6 {[%clk 00:20:14]} {[%emt 00:00:05]} 1-0

[Event "XXII Obert Internacional d'Escacs Sant Marti 2022"]
[Site "Barcelona, Spain"]
[Date "2022.07.13"]
[Round "1.7"]
[White "Deodhar, Vrushali Umesh"]
[Black "Narciso Dublan, Marc"]
[Result "0-1"]
[TimeControl "1.30 fb 30"]
[WhiteElo "1984"]
[BlackElo "2461"]

1. c4 {[%emt 00:39:06]} f5 {[%emt 00:00:13]} 2. Nc3 {[%emt 00:00:19]} Nf6
{[%emt 00:00:12]} 3. g3 {[%emt 00:00:26]} g6 {[%emt 00:00:26]} 4. Bg2 {[%emt
00:00:05]} Bg7 {[%emt 00:00:10]} 5. d3 {[%emt 00:00:14]} O-O {[%emt 00:01:09]}
6. e3 {[%emt 00:00:09]} e5 {[%emt 00:01:33]} 7. Nge2 {[%emt 00:00:06]} d6
{[%emt 00:00:55]} 8. O-O {[%emt 00:00:11]} a5 {[%emt 00:00:36]} 9. a3 {[%emt
00:02:06]} c6 {[%emt 00:00:28]} 10. Rb1 {[%emt 00:11:14]} Be6 {[%emt 00:00:25]}
11. b4 {[%emt 00:02:18]} axb4 {[%emt 00:00:13]} 12. axb4 {[%emt 00:00:37]} d5
{[%emt 00:05:21]} 13. Na4 {[%emt 00:07:19]} dxc4 {[%emt 00:03:41]} 14. Nc5
{[%emt 00:00:10]} Bf7 {[%emt 00:01:20]} 15. Nxb7 {[%emt 00:08:09]} Qxd3 {[%emt
00:00:46]} 16. Bb2 {[%emt 00:00:34]} Ne4 {[%emt 00:07:44]} 17. Bxe4 {[%emt
00:06:05]} Qxe4 {[%emt 00:00:40]} 18. Nc5 {[%emt 00:00:17]} Qf3 {[%emt
00:02:50]} 19. Nc3 {[%emt 00:01:53]} Qxd1 {[%emt 00:01:24]} 20. Rfxd1 {[%emt
00:00:02]} Na6 {[%emt 00:00:40]} 21. Nd7 {[%emt 00:03:35]} Rfd8 {[%emt
00:05:51]} 22. b5 {[%emt 00:03:26]} cxb5 {[%emt 00:01:18]} 23. Nxb5 {[%emt
00:00:02]} Be8 {[%emt 00:02:28]} 24. Nb6 {[%emt 00:08:40]} Rxd1+ {[%emt
00:00:49]} 25. Rxd1 {[%emt 00:00:02]} Rb8 {[%emt 00:00:07]} 26. Nxc4 {[%emt
00:03:25]} Bxb5 {[%emt 00:03:45]} 27. Nxe5 {[%emt 00:03:04]} Nc5 {[%emt
00:04:13]} 28. Bd4 {[%emt 00:00:48]} Ne6 {[%emt 00:02:40]} 29. f4 {[%emt
00:06:26]} Rd8 {[%emt 00:03:04]} 30. Rb1 {[%emt 00:01:49]} Nxd4 {[%emt
00:01:02]} 31. exd4 {[%emt 00:00:02]} Be8 {[%emt 00:00:24]} 32. Rd1 {[%emt
00:01:03]} Bf7 {[%emt 00:06:10]} 33. h3 {[%emt 00:03:29]} Bd5 {[%emt 00:00:20]}
34. Kf2 {[%emt 00:01:59]} Ra8 {[%emt 00:01:50]} 35. Rc1 {[%emt 00:01:47]} Ra2+
{[%emt 00:00:55]} 36. Ke3 {[%emt 00:01:11]} Ra3+ {[%emt 00:00:11]} 37. Kd2
{[%emt 00:03:31]} Bxe5 {[%emt 00:00:55]} 38. fxe5 {[%emt 00:00:03]} Rxg3 {[%emt
00:00:38]} 39. Rc5 {[%emt 00:00:09]} Be4 {[%emt 00:00:25]} 40. Rc8+ {[%emt
00:00:34]} Kf7 {[%emt 00:00:12]} 41. Rd8 {[%emt 00:00:54]} Rxh3 {[%emt
00:01:12]} 0-1